Cogmind - Beta 17 @@@ ROGUE MODE // 2026.08.16 @ 13:01:04 Player: Lazz Result: Destroyed by S-43 Plague with Heavy Machine Gun Performance ------------- Evolutions (9) 4500 Regions Visited (17) 3400 Robots Destroyed (102) 510 Value Destroyed (4033) 4033 Prototype IDs (19) 380 Alien Tech Used (6) 1200 Bonus (5500) 5500 TOTAL SCORE: 19523 Bonus ------- Hunted by Unchained 500 Entered DSFs 1500 Used Core Reset Matrix 3000 Scanned by Researcher 500 Cogmind --------- Core Integrity 0/1600 Matter 72/300 Energy 30/100 System Corruption 17% Temperature Cool (0) Movement Core (50) Location -1/Access Parts ------- > --- POWER (3) -------- (None) > --- PROPULSION (9) --- (None) > --- UTILITY (9) ------ (None) > --- WEAPON (4) ------- (None) > --- INVENTORY (5) ---- Advanced Heat Sink Advanced Sensor Array Omega Cannon Peak State ------------ > --- POWER ------------ Micro Antimatter Reactor Matter Drive > --- PROPULSION ------- Gravmag Array Improved Antigrav System Improved Antigrav System Improved Antigrav System Improved Antigrav System Improved Antigrav System Improved Antigrav System > --- UTILITY ---------- Advanced Heat Sink Small Storage Unit Small Battery Long-range Sensor Array Experimental Melee Analysis Suite Advanced Target Analyzer Improved Component Analysis Suite Improved System Guard Advanced Corruption Screen > --- WEAPON ----------- Core Stripper Sigix Broadsword > --- INVENTORY -------- Micro Antimatter Reactor Advanced Sensor Array Subatomic Replicator Heavy Quantum Rifle Compact HERF Cannon Omega Cannon Stasis Projector [Rating: 188] Favorites ----------- Power Micro Antimatter Reactor Engine Reinforced Ion Engine Power Core Light Nuclear Core Reactor Micro Antimatter Reactor Propulsion Improved Antigrav System Treads Light Treads Leg Aluminum Leg Wheel Armored Huge Wheel Hover Unit Improved Antigrav System Flight Unit Impulse Thruster Array Utility Advanced Heat Sink Device Advanced Heat Sink Storage Large Storage Unit Processor Terrain Scan Processor Hackware System Shield Protection Hardened Medium Armor Plating Weapon Improved Assault Rifle Energy Gun Plasma Rifle Energy Cannon Compact HERF Cannon Ballistic Gun Improved Assault Rifle Ballistic Cannon Omega Cannon Launcher Rocket Launcher Special Weapon Stasis Projector Impact Weapon Core Stripper Slashing Weapon Chainsword Build | -11 -10 -9 -8 -7 -7 -6 -6 -6 -6 -5 -4 -4 -3 -3 -2 -2 -1 ------- Run | Yrd Mat Mat Mat Fac DSF Fac Was Fac DSF Fac Fac DSF Res Tes Res Qua Acc Slots Evolved 18 | . . 2 2 2 . 2 . . . 2 2 . 2 . 2 . 2 Power 2 | . . . . . . 1 . . . . . . . . . . 1 Propulsion 7 | . . 1 . 1 . 1 . . . 2 . . 1 . . . 1 Utility 7 | . . . 2 1 . . . . . . 2 . . . 2 . . Weapon 2 | . . 1 . . . . . . . . . . 1 . . . . Parts Attached 168 | 8 10 21 5 3 10 3 1 3 8 3 . 4 6 14 11 37 21 Power 21 | 1 2 3 . . . 1 . 1 . . . . 2 2 1 4 4 Engine 7 | 1 2 3 . . . . . . . . . . . . . 1 . Core 3 | . . . . . . 1 . 1 . . . . 1 . . . . Reactor 11 | . . . . . . . . . . . . . 1 2 1 3 4 Propulsion 56 | 2 6 8 2 1 1 1 1 1 2 1 . . 3 4 2 13 8 Treads 12 | . 2 4 2 1 1 . . . . . . . . . . 2 . Leg 8 | 2 4 2 . . . . . . . . . . . . . . . Wheel 5 | . . 2 . . . 1 . . . . . . . . 1 . 1 Hover 18 | . . . . . . . . . . . . . . . . 11 7 Flight 13 | . . . . . . . 1 1 2 1 . . 3 4 1 . . Utility 49 | 2 2 1 3 1 2 1 . 1 3 2 . 3 1 4 5 12 6 Device 31 | 1 1 . 2 . 2 1 . 1 3 2 . 3 1 3 1 5 5 Storage 4 | 1 1 . . . . . . . . . . . . . . 2 . Processor 10 | . . . 1 . . . . . . . . . . 1 3 4 1 Hackware 2 | . . . . . . . . . . . . . . . 1 1 . Protection 2 | . . 1 . 1 . . . . . . . . . . . . . Artifact . | . . . . . . . . . . . . . . . . . . Weapon 42 | 3 . 9 . 1 7 . . . 3 . . 1 . 4 3 8 3 Energy Gun 14 | 1 . 2 . . 7 . . . . . . . . 1 1 2 . Energy Cannon 4 | . . . . . . . . . . . . 1 . 1 2 . . Ballistic Gun 10 | 2 . 5 . . . . . . . . . . . . . . 3 Ballistic Cannon 2 | . . . . . . . . . . . . . . 2 . . . Launcher 2 | . . 2 . . . . . . . . . . . . . . . Special Weapon 3 | . . . . . . . . . . . . . . . . 3 . Impact Weapon 2 | . . . . 1 . . . . . . . . . . . 1 . Slashing Weapon 5 | . . . . . . . . . 3 . . . . . . 2 . Piercing Weapon . | . . . . . . . . . . . . . . . . . . Special Melee Weapon . | . . . . . . . . . . . . . . . . . . Unidentified Prototypes 13 | . . 1 . . . . . 1 . . . . . 5 2 3 1 Corrupted Parts 1 | . . . . . . . 1 . . . . . . . . . . System Corruption 6 | . . . . . . . 6 . . . . . . . . . . Parts Lost 79 | . 2 9 . . . . 9 . 1 1 . . . 9 10 10 28 Power 11 | . 1 2 . . . . 2 . . 1 . . . . 1 1 3 Propulsion 31 | . . 4 . . . . 2 . . . . . . 3 4 2 16 Utility 20 | . . 1 . . . . 2 . 1 . . . . 3 4 4 5 Weapon 17 | . 1 2 . . . . 3 . . . . . . 3 1 3 4 Highest Loss Streak 10 | . 1 4 . . . . 9 . 1 1 . . . 5 10 6 10 To Critical Strikes 1 | . . . . . . . . . . . . . . . . . 1 Average Backups 7 | 2 8 11 13 14 14 14 9 4 4 4 5 5 4 4 3 3 6 Power . | . . 1 1 2 1 . . . . . . . . . . . . Propulsion . | . 3 . 2 1 1 . . . . . . . . . . . . Utility 3 | . 3 5 6 7 7 7 5 2 1 1 2 1 1 2 . . 2 Weapon 2 | . 1 4 2 2 4 7 4 2 3 2 3 3 3 1 2 2 . Tool/Special . | . . . . . . . . . . . . . . . . . . Unused Backups 31 | . 5 6 . . 1 . 9 . 1 2 . . . 4 1 . 2 Power . | . . . . . . . . . . . . . . . . . . Propulsion 4 | . 4 . . . . . . . . . . . . . . . . Utility 18 | . 1 4 . . 1 . 5 . 1 2 . . . 2 . . 2 Weapon 9 | . . 2 . . . . 4 . . . . . . 2 1 . . Tool/Special . | . . . . . . . . . . . . . . . . . . Average Slot Usage (%) 74 | . 93 87 99 99 98 96 46 23 46 70 57 61 78 73 40 55 70 Engine 4 | . 11 9 9 7 7 6 2 . . . . . . . . . 1 Reactor 3 | . . . . . . . . . . . . . 2 7 3 5 7 Treads 9 | . 4 25 27 29 30 23 7 . . . . . . . . 3 . Leg 2 | . 23 1 . . . . . . . . . . . . . . . Hover 5 | . . . . . . . . . . . . . . . . 13 20 Flight 4 | . . . . . . . 1 9 14 23 21 21 21 21 11 . . Device 11 | . 12 3 16 15 15 13 6 3 9 18 15 19 28 25 6 7 11 Storage 5 | . 14 11 9 7 7 6 2 . . . . . . . . 4 4 Processor 5 | . . . 9 7 7 6 6 6 6 5 5 5 4 3 7 8 11 Protection 1 | . . 5 1 7 7 6 2 . . . . . . . . . . Energy Gun 4 | . . 6 . . 16 20 8 . . . . . . 1 3 3 1 Energy Cannon 1 | . . . . . . . . . . . . 1 4 . 3 1 2 Ballistic Gun 7 | . 26 19 27 22 4 . . . . . . . . . . . . Slashing Weapon 1 | . . . . . . . . . 8 17 15 13 13 8 . 1 . Peak Build Rating 188 | 7 10 21 28 32 41 53 54 21 69 84 75 90 117 140 103 188 157 Average Rating 72 | 5 7 15 27 31 35 48 28 16 38 79 75 78 108 117 85 122 126 On Entrance 48 | . 7 9 20 28 32 41 53 10 21 66 75 75 90 117 77 32 124 Avg Prop Armor Cover (%) 10 | . . 9 . . . 20 17 . . . . 15 5 2 13 6 11 Naked Turns 103 | . . . . . . . . . . . . . . . . . 103 Heaviest Build 82 | 15 30 42 43 49 52 57 57 7 19 19 12 30 54 59 40 56 82 Greatest Support 155 | 20 46 69 63 80 80 60 28 12 33 46 46 33 67 69 44 155 65 Greatest Overweight (x) 5 | . 1 4 . . . 5 2 . 1 . . . . . 1 1 5 Average Overweight (x) . | . . . . . . 3 . . . . . . . . . . . Largest Inventory Capacity 15 | 8 15 15 15 15 15 15 15 5 5 5 5 5 5 5 5 8 8 Average Capacity 9 | 7 12 15 15 15 15 15 9 5 5 5 5 5 5 5 5 6 7 Most Carried 15 | 5 11 15 15 15 15 15 15 5 5 5 5 5 5 5 5 8 8 Average Carried 8 | 2 8 11 13 14 14 14 9 4 4 4 5 4 4 4 4 5 6 Final Capacity 15 | 8 15 15 15 15 15 15 5 5 5 5 5 5 5 5 5 8 5 Final Carried 15 | 5 10 14 15 15 15 15 5 4 5 5 5 5 5 5 5 8 4 Class Distribution -------------------- 26% | Mutant 16% | Scavenger-Tank 9% | Scavenger-Skirmisher 9% | Scavenger-Mutant 8% | Scout 7% | Scavenger-Gunner 5% | Sprinter 4% | Gunner 4% | Scavenger-Gladiator 3% | Hacker-Mutant 3% | Tank Dominant Class ---------------- Mutant | -10/Materials Gunner | -9/Materials Scavenger-Skirmisher | -8/Materials Scavenger-Skirmisher | -7/Factory Scavenger-Tank | -7/DSF Scavenger-Tank | -6/Factory Mutant | -6/Waste Mutant | -6/Factory Mutant | -6/DSF Sprinter | -5/Factory Sprinter | -4/Factory Mutant | -4/DSF Sprinter | -3/Research Scout | -3/Testing Hacker-Mutant | -2/Research Mutant | -2/Quarantine Scavenger-Gunner | -1/Access Resources | -11 -10 -9 -8 -7 -7 -6 -6 -6 -6 -5 -4 -4 -3 -3 -2 -2 -1 ----------- Run | Yrd Mat Mat Mat Fac DSF Fac Was Fac DSF Fac Fac DSF Res Tes Res Qua Acc Matter Collected 3543 | 408 371 666 194 . 140 20 . . . 154 . . 25 179 49 767 570 Remotely . | . . . . . . . . . . . . . . . . . . Salvage Created 4098 | 207 599 963 235 . 256 43 . . 60 154 . . 25 149 182 812 413 Parts 237 | 15 33 66 14 . 16 1 . . 3 6 . . 4 4 17 40 18 Haulers Intercepted 4 | . 1 1 1 . 1 . . . . . . . . . . . . Recyclers Shooed 5 | . 1 4 . . . . . . . . . . . . . . . Parts Field Recycled . | . . . . . . . . . . . . . . . . . . Retrieved Matter . | . . . . . . . . . . . . . . . . . . Parts Self-Destructed . | . . . . . . . . . . . . . . . . . . Prevented . | . . . . . . . . . . . . . . . . . . Parts Restored . | . . . . . . . . . . . . . . . . . . Kills | -11 -10 -9 -8 -7 -7 -6 -6 -6 -6 -5 -4 -4 -3 -3 -2 -2 -1 ------- Run | Yrd Mat Mat Mat Fac DSF Fac Was Fac DSF Fac Fac DSF Res Tes Res Qua Acc Combat Hostiles Destroyed 65 | . 10 18 4 . 6 1 . . 1 1 . . . 3 3 9 9 Melee 6 | . . . . . . . . . 1 1 . . . . . 4 . Guns 37 | . 10 13 4 . 6 1 . . . . . . . . 1 2 . Cannons 17 | . . . . . . . . . . . . . . 3 2 3 9 AOE 5 | . . 5 . . . . . . . . . . . . . . . Classes Destroyed 17 | 3 4 5 1 . 1 1 . . 1 . . . . . . 1 . Worker 4 | 1 1 2 . . . . . . . . . . . . . . . Builder 11 | . 1 3 . . . . . . . . . . 1 . 4 1 1 Tunneler 5 | 4 . . . . . . . . . 1 . . . . . . . Hauler 4 | . 1 1 1 . 1 . . . . . . . . . . . . Recycler 4 | 1 1 1 . . . . . . . . . . . . . 1 . Mechanic 2 | . . 1 . . . . . . . 1 . . . . . . . Operator 1 | . 1 . . . . . . . . . . . . . . . . Watcher 4 | . . 3 . . . . . . . . . . . . . . 1 Swarmer 7 | . . 2 . . 2 . . . . . . . . . 3 . . Grunt 29 | . 10 11 2 . 3 . . . . . . . . . . 3 . Brawler 1 | . . 1 . . . . . . . . . . . . . . . Researcher 2 | . . . . . . . . . . . . . . . . 2 . Sentry 7 | . . 4 1 . . . . . . 1 . . . . . . 1 Specialist 1 | . . . . . . . . . 1 . . . . . . . . Hunter 8 | . . . 1 . . . . . . . . . . 3 . . 4 Programmer 11 | . . . . . . 1 . . . . . . . . . 6 4 Heavy 1 | . . . . . 1 . . . . . . . . . . . . Best Kill Streak 5 | 5 4 4 3 . 3 1 . . 1 2 . . 1 3 4 5 3 Combat Bots Only 5 | . 4 4 2 . 3 1 . . 1 1 . . . 3 3 5 2 Max Kills in Single Turn 3 | 1 1 3 1 . 2 1 . . 1 1 . . 1 1 1 1 1 Gunslinging 1 | . . . . . 1 . . . . . . . . . . . . Exploded 2 | . . 2 . . . . . . . . . . . . . . . Melee 1 | . . . . . . . . . 1 1 . . . . . 1 . Uniques/NPCs Destroyed . | . . . . . . . . . . . . . . . . . . Combat | -11 -10 -9 -8 -7 -7 -6 -6 -6 -6 -5 -4 -4 -3 -3 -2 -2 -1 -------- Run | Yrd Mat Mat Mat Fac DSF Fac Was Fac DSF Fac Fac DSF Res Tes Res Qua Acc Hostile Shots Fired 926 | . 49 172 15 . 24 8 12 . 8 14 . 4 3 149 96 141 231 Missed 281 | . 12 43 4 . 13 3 1 . 5 3 . 3 2 48 37 31 76 Hits 645 | . 37 129 11 . 11 5 11 . 3 11 . 1 1 101 59 110 155 Melee 14 | . . 1 . . . . 11 . 2 . . . . . . . . Projectile 631 | . 37 128 11 . 11 5 . . 1 11 . 1 1 101 59 110 155 AOE 1 | . . . . . . . . . . . . . . . . . 1 Critical Strikes 39 | . 1 . . . . 1 5 . 2 . . . . 9 1 14 6 Damage Taken 13002 | . 452 1580 84 . 361 73 470 . 94 237 . . . 1698 1478 2575 3900 Core 3266 | . 53 202 18 . 18 14 221 . 49 68 . . . 239 571 210 1603 Absorbed by Shields 38 | . . . . . . . . . . . . . . . . . 38 Regen/Repaired (Parts) 216 | . . . . . . . . . . . . . . . . 216 . Core Remaining (%) 80 | 100 78 49 96 . 97 . . . 66 93 . 100 . 81 . 46 . Volleys Fired 231 | 13 42 67 10 . 10 3 . . . . . . . 7 23 21 35 Largest 3 | 2 2 3 3 . 3 3 . . . . . . . 2 2 1 3 Hottest 240 | 40 40 120 69 . 240 225 . . . . . . . 108 200 100 194 Shots Fired 448 | 26 82 156 30 . 30 8 . . . . . . . 10 28 22 56 Gun 343 | 26 82 145 30 . 30 8 . . . . . . . 3 5 11 3 Cannon 83 | . . . . . . . . . . . . . . 7 23 11 42 Launcher 11 | . . 11 . . . . . . . . . . . . . . . Special 11 | . . . . . . . . . . . . . . . . . 11 Kinetic 262 | 26 82 82 30 . . . . . . . . . . 7 . 8 27 Thermal 126 | . . 49 . . 30 8 . . . . . . . . 28 11 . Explosive 11 | . . 11 . . . . . . . . . . . . . . . Electromagnetic 38 | . . 14 . . . . . . . . . . . 3 . 3 18 Robot Hit Streak 33 | 4 8 16 8 . 10 8 . . . . . . . 11 7 9 33 Robot Miss Streak 4 | 2 3 3 1 . 2 . . . . . . . . 1 4 1 3 Penetration Max . | . . . . . . . . . . . . . . . . . . Secondary Targets 8 | . 1 5 . . 2 . . . . . . . . . . . . Max Gunslinging Chain 1 | . 1 1 . . 1 . . . . . . . . . . . . Shots Hit Robots 332 | 14 60 99 20 . 26 6 . . 1 13 . . 1 9 10 30 43 Core Hits 157 | 6 27 51 13 . 20 2 . . 1 5 . . . 4 7 11 10 Critical Kills 1 | . 1 . . . . . . . . . . . . . . . . Critical Parts Destroyed 1 | . 1 . . . . . . . . . . . . . . . . Critical Strikes 16 | . 2 . . . . . . . . 2 . . . 2 . 2 8 Destroy 2 | . 2 . . . . . . . . . . . . . . . . Blast 7 | . . . . . . . . . . . . . . . . 2 5 Corrupt 3 | . . . . . . . . . . . . . . . . . 3 Sever 4 | . . . . . . . . . . 2 . . . 2 . . . Melee Attacks 59 | . . . . 1 . . 1 . 2 15 . 2 3 15 . 20 . Impact 2 | . . . . 1 . . 1 . . . . . . . . . . Slashing 57 | . . . . . . . . . 2 15 . 2 3 15 . 20 . Piercing . | . . . . . . . . . . . . . . . . . . Sneak Attacks 7 | . . . . . . . . . 1 2 . . 1 . . 3 . Combat Hostiles . | . . . . . . . . . . . . . . . . . . Follow-up Attacks 4 | . . . . . . . . . . 4 . . . . . . . Damage Inflicted 10363 | 194 823 1936 282 . 619 161 4 . 66 553 . . 66 479 456 2503 2221 Guns 3885 | 194 744 1389 282 . 619 161 . . . . . . . . 78 407 11 Cannons 3496 | . . . . . . . . . . . . . . 337 378 571 2210 Explosions 626 | . 79 547 . . . . . . . . . . . . . . . Melee 2352 | . . . . . . . . . 66 553 . . 66 142 . 1525 . Ramming 4 | . . . . . . . 4 . . . . . . . . . . Kinetic 4952 | 194 744 841 282 . . . . . . . . . . 337 . 571 1983 Thermal 2062 | . . 419 . . 619 161 . . . . . . . . 456 407 . Explosive 586 | . 79 507 . . . . . . . . . . . . . . . Electromagnetic 407 | . . 169 . . . . . . . . . . . . . . 238 Impact . | . . . . . . . . . . . . . . . . . . Slashing 2352 | . . . . . . . . . 66 553 . . 66 142 . 1525 . Piercing . | . . . . . . . . . . . . . . . . . . Highest Corruption 22 | . . 2 . . . 1 22 22 22 . . . . 5 . 10 17 Average Corruption 7 | . . 2 . . . 1 12 22 22 . . . . 4 . 7 15 Corruption Purged . | . . . . . . . . . . . . . . . . . . Corruption Blocked 2 | . . . . . . . . . . . . . . . . 2 . Effects 38 | . . 5 . . . 3 8 1 3 . . . . 2 . 12 4 Message Errors 8 | . . 2 . . . . 1 . . . . . . 1 . 3 1 Matter Fused 8 | . . 1 . . . 1 2 1 . . . . . . . 3 . Heat Flow Errors 6 | . . 1 . . . . 2 . 1 . . . . . . 1 1 Energy Discharges 2 | . . . . . . 1 . . 1 . . . . . . . . Parts Fused 1 | . . 1 . . . . . . . . . . . . . . . Data Loss (minor) 5 | . . . . . . . 2 . . . . . . . . 3 . Data Loss (major) 2 | . . . . . . . . . . . . . . . . 1 1 Misfires 2 | . . . . . . . . . . . . . . 1 . 1 . Alerts 1 | . . . . . . . . . 1 . . . . . . . . Misdirections 2 | . . . . . . . 1 . . . . . . . . . 1 Weapon Failures 1 | . . . . . . 1 . . . . . . . . . . . Overload Shots . | . . . . . . . . . . . . . . . . . . Overflow Damage 993 | . . . . . . . . . . 64 . . 26 . 6 366 531 Projectiles 642 | . . . . . . . . . . . . . . . 6 105 531 Explosions . | . . . . . . . . . . . . . . . . . . Melee 351 | . . . . . . . . . . 64 . . 26 . . 261 . Knockbacks 17 | . . . . . . . . . . . . . . 1 . 3 13 Impact . | . . . . . . . . . . . . . . . . . . Kinetic 16 | . . . . . . . . . . . . . . 1 . 3 12 Secondary 1 | . . . . . . . . . . . . . . . . . 1 Self-Inflicted Damage 48 | . . 46 . . . . 2 . . . . . . . . . . Shots 3 | . . 3 . . . . . . . . . . . . . . . Rammed 2 | . . 1 . . . . 1 . . . . . . . . . . Targets Rammed 2 | . . 1 . . . . 1 . . . . . . . . . . Kicked . | . . . . . . . . . . . . . . . . . . Crushed . | . . . . . . . . . . . . . . . . . . Highest Temperature 362 | . 20 334 27 . . 60 127 . 65 . . . 4 144 362 55 140 Average Temperature 78 | . 4 89 6 . . 24 75 . 44 . . . 4 46 132 23 31 Received Heat Transfer 1827 | . 282 630 27 . 27 . . . . 72 . . . 21 534 180 54 Effects 7 | . . 3 . . . . . . . . . . . . 4 . . Energy Bleed 1 | . . . . . . . . . . . . . . . 1 . . Interference 6 | . . 3 . . . . . . . . . . . . 3 . . Siege Activations . | . . . . . . . . . . . . . . . . . . Martial Activations . | . . . . . . . . . . . . . . . . . . Shielding Activations . | . . . . . . . . . . . . . . . . . . Robots Disrupted . | . . . . . . . . . . . . . . . . . . Combat Hostiles . | . . . . . . . . . . . . . . . . . . Robots Corrupted . | . . . . . . . . . . . . . . . . . . Combat Hostiles . | . . . . . . . . . . . . . . . . . . Parts Fried 5 | . . . . . . . . . . . . . . . . . 5 Impact Corruptions 1 | . . . . . . . . . . . . . . . . . 1 Robots Melted . | . . . . . . . . . . . . . . . . . . Combat Hostiles . | . . . . . . . . . . . . . . . . . . Parts Melted 3 | . . 1 . . . 1 . . . . . . . . . 1 . Heat Transferred 3365 | . . 900 . . 1425 300 . . . . . . . . 407 333 . Parts Sabotaged . | . . . . . . . . . . . . . . . . . . Parts Stolen . | . . . . . . . . . . . . . . . . . . Parts Stripped . | . . . . . . . . . . . . . . . . . . Power Chain Reactions 1 | . . 1 . . . . . . . . . . . . . . . Alert | -11 -10 -9 -8 -7 -7 -6 -6 -6 -6 -5 -4 -4 -3 -3 -2 -2 -1 ------- Run | Yrd Mat Mat Mat Fac DSF Fac Was Fac DSF Fac Fac DSF Res Tes Res Qua Acc Maximum Alert Level 1 | . . 1 . . . . . . . . . . . . 1 . . Low Security (%) 98 | 100 100 89 100 100 100 100 100 100 100 100 100 100 100 100 96 100 100 Level 1 1 | . . 10 . . . . . . . . . . . . 3 . . Level 2 . | . . . . . . . . . . . . . . . . . . Level 3 . | . . . . . . . . . . . . . . . . . . Level 4 . | . . . . . . . . . . . . . . . . . . Level 5 . | . . . . . . . . . . . . . . . . . . High Security . | . . . . . . . . . . . . . . . . . . Max Security . | . . . . . . . . . . . . . . . . . . Peak Influence 256 | 10 108 256 116 35 192 120 . . 53 45 16 33 34 93 214 119 126 Initial 114 | . . 26 98 35 17 100 . . 3 22 16 14 18 13 20 114 45 Average 48 | 2 57 116 76 26 75 54 . . 12 13 16 17 22 23 44 41 21 Influence Increases 2975 | 30 318 618 120 20 175 30 . 5 50 70 5 19 36 287 399 386 407 Destroy 0b10 Robot/C 1340 | . 200 360 80 . 120 20 . . 20 20 . . . 60 60 220 180 Destroy 0b10 Robot/NC 175 | 30 25 55 5 . 5 . . . . 10 . . 5 . 20 10 10 Destroy Leader 314 | . 52 98 32 . 20 10 . . . 10 . . . . 10 30 52 Successful Hack 114 | . 11 2 2 5 . . . 5 . . 5 . 14 52 18 . . Disable Machine 240 | . 15 30 . 15 . . . . . . . . . 90 15 75 . Destroy Structure 162 | . 15 73 1 . . . . . . . . 4 2 10 36 6 15 Lose Combat Pursuer 630 | . . . . . 30 . . . 30 30 . 15 15 75 240 45 150 Influence Decreases 2975 | 30 256 446 276 73 8 222 . . 12 78 19 7 45 275 231 513 484 Entered New Map 528 | . . 36 136 43 8 92 . . 2 21 19 7 15 11 16 90 32 Time Decay 1815 | 30 236 331 140 30 . 130 . . . 47 . . 30 199 116 329 197 Lost Part 512 | . 20 79 . . . . . . 10 10 . . . 65 99 94 135 Lost Ally 120 | . . . . . . . . . . . . . . . . . 120 Squads Dispatched 30 | . 2 3 3 . 1 . . 1 2 . . . 1 5 3 6 3 Investigation 6 | . . 1 1 . . . . 1 . . . . . 1 1 1 . Extermination 10 | . . . . . . . . . . . . . . 3 1 3 3 Reinforcement 13 | . 2 2 1 . 1 . . . 2 . . . 1 1 1 2 . Assault . | . . . . . . . . . . . . . . . . . . Garrison 1 | . . . 1 . . . . . . . . . . . . . . Intercept . | . . . . . . . . . . . . . . . . . . Searches Triggered . | . . . . . . . . . . . . . . . . . . Unchained Authorized 2 | . . . . . . . . . . . . . . 1 . 1 . Construction Impeded 1 | . . . . . . . . . . . . . . . 1 . . Haulers Reinforced . | . . . . . . . . . . . . . . . . . . Active Scanning Responses . | . . . . . . . . . . . . . . . . . . Cargo Convoy Interrupts . | . . . . . . . . . . . . . . . . . . Stealth | -11 -10 -9 -8 -7 -7 -6 -6 -6 -6 -5 -4 -4 -3 -3 -2 -2 -1 --------- Run | Yrd Mat Mat Mat Fac DSF Fac Was Fac DSF Fac Fac DSF Res Tes Res Qua Acc Distress Signals 11 | . 2 3 . . . . . . . 1 . . . . . 1 4 Communications Jammed . | . . . . . . . . . . . . . . . . . . Distress Signals . | . . . . . . . . . . . . . . . . . . Times Spotted 183 | . 14 26 8 . 8 1 6 . 5 6 . 1 3 22 20 18 45 Peak Tracking Total 28 | . 4 6 3 . 4 1 6 . 4 5 . 1 4 13 12 8 28 Tactical Retreats 16 | . . . . . 1 . . . 2 2 . 1 1 1 3 2 3 Traps | -11 -10 -9 -8 -7 -7 -6 -6 -6 -6 -5 -4 -4 -3 -3 -2 -2 -1 ------- Run | Yrd Mat Mat Mat Fac DSF Fac Was Fac DSF Fac Fac DSF Res Tes Res Qua Acc Traps Triggered 7 | . . . . . . 1 . 1 1 . . . . 1 1 . 2 Indirectly . | . . . . . . . . . . . . . . . . . . Trap Hack Attempts . | . . . . . . . . . . . . . . . . . . Triggered . | . . . . . . . . . . . . . . . . . . Disarmed . | . . . . . . . . . . . . . . . . . . Reprogrammed . | . . . . . . . . . . . . . . . . . . Reused . | . . . . . . . . . . . . . . . . . . Traps Extracted . | . . . . . . . . . . . . . . . . . . Installed . | . . . . . . . . . . . . . . . . . . Triggered . | . . . . . . . . . . . . . . . . . . Machines | -11 -10 -9 -8 -7 -7 -6 -6 -6 -6 -5 -4 -4 -3 -3 -2 -2 -1 ---------- Run | Yrd Mat Mat Mat Fac DSF Fac Was Fac DSF Fac Fac DSF Res Tes Res Qua Acc Machines Disabled 16 | . 1 2 . 1 . . . . . . . . . 6 1 5 . Max in Single Turn 1 | . 1 1 . 1 . . . . . . . . . 1 1 1 . Machines Repaired . | . . . . . . . . . . . . . . . . . . Machines Dismantled . | . . . . . . . . . . . . . . . . . . Machines Sabotaged . | . . . . . . . . . . . . . . . . . . Overloaded Fab Kills . | . . . . . . . . . . . . . . . . . . Hacking | -11 -10 -9 -8 -7 -7 -6 -6 -6 -6 -5 -4 -4 -3 -3 -2 -2 -1 --------- Run | Yrd Mat Mat Mat Fac DSF Fac Was Fac DSF Fac Fac DSF Res Tes Res Qua Acc Machines Accessed 28 | . 2 1 2 1 . 1 . 2 . . 1 . 2 4 3 5 4 Terminals 19 | . 2 . . 1 . 1 . 1 . . 1 . 2 3 2 4 2 Fabricators 1 | . . . . . . . . . . . . . . . . . 1 Repair Stations 1 | . . . 1 . . . . . . . . . . . . . . Recycling Units . | . . . . . . . . . . . . . . . . . . Scanalyzers 7 | . . 1 1 . . . . 1 . . . . . 1 1 1 1 Garrison Access . | . . . . . . . . . . . . . . . . . . Total Hacks 59 | . 7 3 6 1 . 1 . 5 . . 1 . 4 7 6 10 8 Successful 19 | . 2 1 3 1 . . . 2 . . 1 . 2 3 2 2 . Failed 36 | . 4 1 2 . . 1 . 3 . . . . 2 4 4 7 8 Catastrophic 12 | . . . 1 . . 1 . . . . . . 1 2 1 2 4 Database Lockouts 4 | . 1 1 1 . . . . . . . . . . . . 1 . Manual 16 | . 6 . . . . . . . . . . . . 2 3 3 2 Terminals 37 | . 7 . . 1 . 1 . 3 . . 1 . 4 6 4 7 3 Fabricators 2 | . . . . . . . . . . . . . . . . . 2 Repair Stations 3 | . . . 3 . . . . . . . . . . . . . . Recycling Units . | . . . . . . . . . . . . . . . . . . Scanalyzers 17 | . . 3 3 . . . . 2 . . . . . 1 2 3 3 Garrison Access . | . . . . . . . . . . . . . . . . . . Terminal Hacks 11 | . 2 . . 1 . . . 1 . . 1 . 2 2 1 1 . Record 1 | . . . . . . . . . . . . . . . . 1 . Robot Analysis 1 | . 1 . . . . . . . . . . . . . . . . Open DSF 3 | . . . . 1 . . . 1 . . 1 . . . . . . Branch Access Points 2 | . . . . . . . . . . . . . 1 . 1 . . Emergency Access Points 1 | . . . . . . . . . . . . . . 1 . . . Zone Layout 2 | . 1 . . . . . . . . . . . 1 . . . . Protovariant Controls 1 | . . . . . . . . . . . . . . 1 . . . Fabricator Hacks . | . . . . . . . . . . . . . . . . . . Repair Station Hacks 1 | . . . 1 . . . . . . . . . . . . . . Scan Component 1 | . . . 1 . . . . . . . . . . . . . . Recycling Unit Hacks . | . . . . . . . . . . . . . . . . . . Scanalyzer 6 | . . 1 2 . . . . 1 . . . . . . 1 1 . Retrieve Study 6 | . . 1 2 . . . . 1 . . . . . . 1 1 . Garrison Access Hacks . | . . . . . . . . . . . . . . . . . . Unauthorized Hacks 1 | . . . . . . . . . . . . . . 1 . . . Terminals . | . . . . . . . . . . . . . . . . . . Fabricators . | . . . . . . . . . . . . . . . . . . Repair Stations . | . . . . . . . . . . . . . . . . . . Recycling Units . | . . . . . . . . . . . . . . . . . . Scanalyzers 1 | . . . . . . . . . . . . . . 1 . . . Researchers 1 | . . . . . . . . . . . . . . 1 . . . Garrison Access . | . . . . . . . . . . . . . . . . . . Data Cores Recovered . | . . . . . . . . . . . . . . . . . . Used . | . . . . . . . . . . . . . . . . . . Hacking Detections 20 | . 2 . 1 . . 1 . . . . . . 1 4 3 4 4 Full Trace Events 3 | . . . 1 . . . . . . . . . . 1 . 1 . Feedback Events . | . . . . . . . . . . . . . . . . . . Feedback Blocked . | . . . . . . . . . . . . . . . . . . Robot Schematics Acquired 6 | . . . . . . . . . . . . . . . . 6 . Robots Built . | . . . . . . . . . . . . . . . . . . Authchips . | . . . . . . . . . . . . . . . . . . Time . | . . . . . . . . . . . . . . . . . . Total Robot Build Rating . | . . . . . . . . . . . . . . . . . . Part Schematics Acquired 8 | . . . . . . . . . . . . . . . . 8 . Parts Built . | . . . . . . . . . . . . . . . . . . Authchips . | . . . . . . . . . . . . . . . . . . Time . | . . . . . . . . . . . . . . . . . . Total Part Build Rating . | . . . . . . . . . . . . . . . . . . Part Studies Acquired 6 | . . 1 2 . . . . 1 . . . . . . 1 1 . Parts Repaired . | . . . . . . . . . . . . . . . . . . Time . | . . . . . . . . . . . . . . . . . . Parts Recycled . | . . . . . . . . . . . . . . . . . . Recycled Matter . | . . . . . . . . . . . . . . . . . . Retrieved Matter . | . . . . . . . . . . . . . . . . . . Retrieved Components . | . . . . . . . . . . . . . . . . . . Parts Scanalyzed . | . . . . . . . . . . . . . . . . . . Part Schematics Acquired . | . . . . . . . . . . . . . . . . . . Parts Damaged . | . . . . . . . . . . . . . . . . . . Bothacking | -11 -10 -9 -8 -7 -7 -6 -6 -6 -6 -5 -4 -4 -3 -3 -2 -2 -1 ------------ Run | Yrd Mat Mat Mat Fac DSF Fac Was Fac DSF Fac Fac DSF Res Tes Res Qua Acc Used RIF Installer . | . . . . . . . . . . . . . . . . . . Robots Hacked . | . . . . . . . . . . . . . . . . . . Non-combat . | . . . . . . . . . . . . . . . . . . Combat . | . . . . . . . . . . . . . . . . . . Robot Hacks Applied . | . . . . . . . . . . . . . . . . . . Relay Couplers Released . | . . . . . . . . . . . . . . . . . . Fabnet Peak Effective % . | . . . . . . . . . . . . . . . . . . Robots Rewired . | . . . . . . . . . . . . . . . . . . Allies Hacked . | . . . . . . . . . . . . . . . . . . Hacks Repelled . | . . . . . . . . . . . . . . . . . . Allies | -11 -10 -9 -8 -7 -7 -6 -6 -6 -6 -5 -4 -4 -3 -3 -2 -2 -1 -------- Run | Yrd Mat Mat Mat Fac DSF Fac Was Fac DSF Fac Fac DSF Res Tes Res Qua Acc Total Allies 8 | . . . . . . . . . . . . . . . . . 8 Largest Group 7 | . . . . . . . . . . . . . . . . . 7 Highest-Rated Group 90 | . . . . . . . . . . . . . . . . . 90 Highest-Rated Ally 15 | . . . . . . . . . . . . . . . . . 15 Total Orders . | . . . . . . . . . . . . . . . . . . Ally Attacks 11 | . . . . . . . . . . . . . . . . . 11 Total Damage 158 | . . . . . . . . . . . . . . . . . 158 Kills . | . . . . . . . . . . . . . . . . . . Allies Corrupted . | . . . . . . . . . . . . . . . . . . Allies Melted . | . . . . . . . . . . . . . . . . . . Intel | -11 -10 -9 -8 -7 -7 -6 -6 -6 -6 -5 -4 -4 -3 -3 -2 -2 -1 ------- Run | Yrd Mat Mat Mat Fac DSF Fac Was Fac DSF Fac Fac DSF Res Tes Res Qua Acc Active Infowar (turns) 4005 | 74 471 216 295 78 33 . . 18 64 114 3 17 70 562 258 893 839 Optics 273 | . . . . . . . . . . . . . . . . . 273 Sensors 2320 | . . . . . . . . 18 64 . . . . 458 179 893 708 IFF 307 | . . . . . . . . . . 114 3 17 70 103 . . . Terrain 455 | . . . 295 78 33 . . . . . . . . . 49 . . Structural 833 | . . . . . . . . . . . . . 47 562 224 . . Seismic 761 | 74 471 216 . . . . . . . . . . . . . . . ECM 595 | . . . . . . . . . . . . . . . . . 595 Robot Analysis Total 1 | . 1 . . . . . . . . . . . . . . . . Derelict Logs Recovered . | . . . . . . . . . . . . . . . . . . Drone Launches . | . . . . . . . . . . . . . . . . . . Drone Recoveries . | . . . . . . . . . . . . . . . . . . Exploration | -11 -10 -9 -8 -7 -7 -6 -6 -6 -6 -5 -4 -4 -3 -3 -2 -2 -1 ------------- Run | Yrd Mat Mat Mat Fac DSF Fac Was Fac DSF Fac Fac DSF Res Tes Res Qua Acc Turns Passed 5621 | 143 534 795 296 78 194 315 144 37 66 120 3 26 76 568 307 946 973 Spaces Moved 4271 | 70 221 306 143 42 81 199 192 91 86 240 10 35 170 744 318 650 673 Core 167 | 4 . . . . . . . . . . . . . . . . 163 Treads 768 | . 34 264 143 42 81 4 . . . . . . . . . 200 . Legs 253 | 66 187 . . . . . . . . . . . . . . . . Wheels 353 | . . 42 . . . 195 70 . . . . . . . 16 . 30 Hover 875 | . . . . . . . . . . . . . . . . 395 480 Flight 1855 | . . . . . . . 122 91 86 240 10 35 170 744 302 55 . Fastest Speed 29 | 50 120 130 160 162 162 130 40 34 32 31 31 34 29 29 35 36 48 Average Speed 81 | 116 157 167 162 162 163 143 68 35 36 31 31 38 30 30 43 80 86 Slowest Speed 370 | 120 240 240 163 162 165 166 130 40 109 31 31 40 34 35 112 160 370 Overloaded Moves . | . . . . . . . . . . . . . . . . . . Propulsion Burnouts . | . . . . . . . . . . . . . . . . . . Robots Hopped 18 | . . . . . . . . 3 1 . . . . 8 6 . . Potential Cave-ins 13 | . . . . . . . . . . . . . . . 2 7 4 Cave-ins Triggered 1 | . . . . . . . . . . . . . . . . 1 . Exploration Rate (%) 31 | 3 43 39 13 1 75 5 90 4 88 7 1 44 6 64 12 55 20 Regions Visited 17 Branch Regions 2 Pre-discovered Areas . | . . . . . . . . . . . . . . . . . . Known Exits Taken 5 | . . . . 1 . . . 1 . . 1 . 1 . 1 . . Unknown Exits Taken 7 | 1 1 1 1 . . . . . . 1 . . . 1 . 1 . Scrap Searched . | . . . . . . . . . . . . . . . . . . Spaces Dug 13 | . . . . . . . . . . . . 2 1 5 5 . . Terrain Destroyed 116 | . 17 70 . . . . . . . . . 2 1 5 14 2 5 Melee 7 | . . . . . . . . . . . . 2 1 4 . . . Projectile 22 | . . . . . . . . . . . . . . 1 14 2 5 AOE 87 | . 17 70 . . . . . . . . . . . . . . . Terrain Rammed . | . . . . . . . . . . . . . . . . . . Walls Destroyed . | . . . . . . . . . . . . . . . . . . Machines Disabled . | . . . . . . . . . . . . . . . . . . Actions | -11 -10 -9 -8 -7 -7 -6 -6 -6 -6 -5 -4 -4 -3 -3 -2 -2 -1 --------- Run | Yrd Mat Mat Mat Fac DSF Fac Was Fac DSF Fac Fac DSF Res Tes Res Qua Acc Total 5871 | 102 332 460 188 50 118 223 202 90 115 268 9 42 189 1047 453 998 985 Wait 890 | 6 34 26 17 . 4 12 2 . . 8 . . 5 250 92 224 210 Move 4221 | 69 220 305 142 41 80 199 191 84 83 239 9 34 169 728 307 648 673 Hop 15 | . . . . . . . . 3 1 . . . . 7 4 . . Pick Up 76 | 6 9 16 6 3 3 2 1 . 1 3 . 1 1 5 6 11 2 Fast Attach 126 | 6 4 13 1 . 3 1 4 2 8 2 . 3 6 13 6 34 20 Attach 45 | 1 1 4 2 2 . 2 . 1 2 1 . 1 1 1 7 13 6 Detach 24 | . 3 5 1 . . . . . 2 1 . . 1 1 3 6 1 Swap 35 | 1 6 8 3 2 7 1 . . . . . . . 2 . 2 3 Drop 105 | . 13 15 6 1 11 3 2 . 2 3 . 1 4 17 5 12 10 Fire 231 | 13 42 67 10 . 10 3 . . . . . . . 7 23 21 35 Melee 53 | . . . . 1 . . 1 . 1 11 . 2 2 15 . 20 . Ram 1 | . . . . . . . 1 . . . . . . . . . . Kick . | . . . . . . . . . . . . . . . . . . Crush 1 | . . 1 . . . . . . . . . . . . . . . Escape Stasis 48 | . . . . . . . . . 15 . . . . 1 . 7 25 Rewire . | . . . . . . . . . . . . . . . . . . Trap . | . . . . . . . . . . . . . . . . . . Miscellaneous . | . . . . . . . . . . . . . . . . . . Route ------- -11/Scrapyard -10/Materials -9/Materials -8/Materials -7/Factory -7/DSF -6/Factory -6/Waste -6/Factory -6/DSF -5/Factory (discovered 2 exits: *Fac / [*Upp]) -4/Factory -4/DSF -3/Research (discovered 2 exits: *Tes x2) -3/Testing -2/Research (discovered 2 exits: *Qua x2) -2/Quarantine -1/Access History --------- Turn | Location | Event 17 | -11/Scrapyard | Discovered new exit (range 15) 144 | -11/Scrapyard | Entered Materials 277 | -10/Materials | Central database locked down 321 | -10/Materials | Build established: Mutant 574 | -10/Materials | Discovered new exit (range 15) 678 | -10/Materials | Entered another Materials area 678 | -9/Materials | Evolved 2 slots: Propulsion x1, Weapon x1 925 | -9/Materials | Lost 3 parts (1p1u1w) 1048 | -9/Materials | Core integrity fell below 50% 1086 | -9/Materials | Lost 4 parts (1p3n) 1441 | -9/Materials | Central database locked down 1461 | -9/Materials | Discovered new exit (range 4) 1473 | -9/Materials | Entered another Materials area 1473 | -8/Materials | Evolved 2 slots: Utility x2 1641 | -8/Materials | Garrison activated, responded to threat 1756 | -8/Materials | Central database locked down 1762 | -8/Materials | Discovered new exit (range 4) 1769 | -8/Materials | Entered Factory 1769 | -7/Factory | Evolved 2 slots: Propulsion x1, Utility x1 1791 | -7/Factory | Build established: Scavenger-Skirmisher 1846 | -7/Factory | Identified exit to DSF 1847 | -7/Factory | Entered DSF 1897 | -7/DSF | Additional patrols routed to DSF 2019 | -7/DSF | Discovered new exit (range 14) 2041 | -7/DSF | Entered Factory 2041 | -6/Factory | Evolved 2 slots: Power x1, Propulsion x1 2176 | -6/Factory | Build established: Scavenger-Tank 2356 | -6/Factory | Sucked down chute 2356 | -6/Factory | Entered Waste 2371 | -6/Waste | EMP discharged 2371 | -6/Waste | System corruption reached 10% 2391 | -6/Waste | Spotted C-40 Crusher 2393 | -6/Waste | Spotted C-40 Crusher 2400 | -6/Waste | Spotted C-40 Crusher 2401 | -6/Waste | Spotted C-40 Crusher 2407 | -6/Waste | Spotted C-40 Crusher 2409 | -6/Waste | Crushed by Compactor (1 part destroyed, 2 dropped) 2412 | -6/Waste | Crushed by Compactor (1 part destroyed, 1 dropped) 2415 | -6/Waste | Crushed by Compactor (1 part destroyed, 1 dropped) 2415 | -6/Waste | Crushed by Compactor (1 part destroyed) 2418 | -6/Waste | Crushed by Compactor (1 part destroyed, 2 dropped) 2421 | -6/Waste | Spotted C-40 Crusher 2421 | -6/Waste | Crushed by Compactor (1 part destroyed) 2424 | -6/Waste | Crushed by Compactor (1 part destroyed) 2455 | -6/Waste | Lost 9 parts (2p2n2u3w) 2471 | -6/Waste | EMP discharged 2471 | -6/Waste | Discovered new exit (range 16) 2500 | -6/Waste | Entered Factory 2537 | -6/Factory | Identified exit to DSF 2537 | -6/Factory | Entered DSF 2557 | -6/DSF | Additional patrols routed to DSF 2595 | -6/DSF | Discovered new exit (range 15) 2603 | -6/DSF | Entered Factory 2603 | -5/Factory | Evolved 2 slots: Propulsion x2 2644 | -5/Factory | Discovered new exit (range 6) 2644 | -5/Factory | Discovered new exit (range 7) 2723 | -5/Factory | Entered another Factory area 2723 | -4/Factory | Evolved 2 slots: Utility x2 2726 | -4/Factory | Identified exit to DSF 2726 | -4/Factory | Entered DSF 2732 | -4/DSF | Discovered new exit (range 16) 2752 | -4/DSF | Additional patrols routed to DSF 2752 | -4/DSF | Entered Research 2752 | -3/Research | Evolved 2 slots: Propulsion x1, Weapon x1 2760 | -3/Research | Identified exit to Testing 2828 | -3/Research | Entered Testing 2858 | -3/Testing | Found Prototype Hackware 2862 | -3/Testing | Spotted Striker 2871 | -3/Testing | Found Prototype Ballistic Cannon 2899 | -3/Testing | Identified Omega Cannon 2926 | -3/Testing | Lost 4 parts (1n1u2w) 3201 | -3/Testing | Build established: Scout 3241 | -3/Testing | Found Prototype Energy Gun 3241 | -3/Testing | Identified Hyp. EM Gauss Rifle 3263 | -3/Testing | Unchained authorized (6S-H0T) 3309 | -3/Testing | Scanned by Researcher 3347 | -3/Testing | Spotted 6S-H0T 3393 | -3/Testing | Discovered new exit (range 8) 3396 | -3/Testing | Entered Research 3396 | -2/Research | Evolved 2 slots: Utility x2 3407 | -2/Research | Identified System Mapper 3421 | -2/Research | Lost 5 parts (2n2u1w) 3439 | -2/Research | Identified exit to Quarantine 3674 | -2/Research | Spotted B-90 Cyclops 3694 | -2/Research | Spotted B-90 Cyclops 3703 | -2/Research | Entered Quarantine 3713 | -2/Quarantine | Lost 10 parts (1p4n4u1w) 3734 | -2/Quarantine | Found Alien Reactor 3734 | -2/Quarantine | Identified Matter Drive 3890 | -2/Quarantine | Found Alien Artifact 3890 | -2/Quarantine | Identified Core Reset Matrix 3890 | -2/Quarantine | Used Core Reset Matrix 3894 | -2/Quarantine | Detected hypermatrix surge 3894 | -2/Quarantine | Sensed 8 artifacts in vicinity 3921 | -2/Quarantine | Crushed by falling debris 3952 | -2/Quarantine | Lost 4 parts (1n3u) 3966 | -2/Quarantine | Build established: Mutant 4008 | -2/Quarantine | System corruption reached 10% 4164 | -2/Quarantine | Found Sigix Broadsword 4255 | -2/Quarantine | Found Core Stripper 4341 | -2/Quarantine | Found Prototype Processor 4341 | -2/Quarantine | Identified Exp. Melee Analysis Suite 4355 | -2/Quarantine | Central database locked down 4396 | -2/Quarantine | Unchained authorized (6S-H0T) 4453 | -2/Quarantine | Found Subatomic Replicator 4479 | -2/Quarantine | Used Subatomic Replicator to replicate Sigix Broadsword 4499 | -2/Quarantine | Spotted 6S-H0T 4536 | -2/Quarantine | Core integrity fell below 50% 4569 | -2/Quarantine | Lost 6 parts (1p1n1u3w) 4604 | -2/Quarantine | Found Terrabomb 4612 | -2/Quarantine | Found Terrabomb 4634 | -2/Quarantine | Discovered new exit (range 8) 4649 | -2/Quarantine | Entered Access 4649 | -1/Access | Evolved 2 slots: Power x1, Propulsion x1 5080 | -1/Access | Lost 9 parts (7n1u1w) 5113 | -1/Access | Build established: Scavenger-Gunner 5199 | -1/Access | Found Unknown Device 5199 | -1/Access | Identified Quantum Capacitor 5388 | -1/Access | Lost 4 parts (1p1u2w) 5483 | -1/Access | Used Terrabomb 5488 | -1/Access | Released all parts (8) 5489 | -1/Access | System corruption reached 10% 5518 | -1/Access | Lost 10 parts (2p5n2u1w) 5542 | -1/Access | Core integrity fell below 50% 5597 | -1/Access | Emitted hypermatrix ping 5602 | -1/Access | Assembled emerged from beneath the floor 5618 | -1/Access | Used Terrabomb 5619 | -1/Access | Core integrity fell below 20% 5622 | -1/Access | Destroyed by S-43 Plague with Heavy Machine Gun Last Messages --------------- 05607_ Slug penetrates as-34983. 05607_ as-34983 destroyed. 05607_ Acquired 14 matter. 05608_ Slug penetrates as-09035. 05608_ as-09035 suffers critical hit (Destroy). 05608_ as-25855 destroyed. 05608_ Slug penetrates H-88 Terminator. 05610_ Slug penetrates as-55683. 05610_ as-55683 destroyed. 05610_ as-27640 destroyed. 05612_ as-96013 destroyed. 05615_ Slug penetrates Wall. 05618_ Antigrav System destroyed. 05618_ Terrabomb activated. 05618_ Penetrated by Slug. 05618_ Antigrav System destroyed. 05619_ Knocked back. 05620_ Penetrated by Slug. 05620_ Slug penetrates Recycling Unit. 05622_ Antigrav System destroyed. Map ----- +----------------------------------------------------+ | ?????????????????????????????????????????????????? | | ?????????????????????????????????????????????????? | | ?????????????????????????????????????????????????? | | ?????????????????????????????????????????????????? | | ?????????????????????????????????????????????????? | | ?????????????????????????????????????????????????? | | ?????????????????????????????????????????????????? | | ?????????????????????????????????????????????????? | | ?????????????????????????????????????????????????? | | ?????????????????????????????????????????????????? | | ????????????????????? ?????????????????????? | | ??????????????????? s s ""???????????????????? | | ????????????????" s ss ????????????????? | | ??????????????"";;;+;;;;;; ???????????????? | | ???????????? ; ; u ????????????????? | | ???????????" ; ;;;;;;;##???????????????? | | ?????????? " ; !!! ; ##??????????????? | | ???????? " ; !! ; ##?????????????? | | ?????? ";;; !! ; #?? ??????????? | | ?????? ;;;;;;;;;;;;;;;;;;;;;;# ??????????? | | ????? ; ; ??????????? | | ?????""+""" ; ; #?????????? | | ???? " ; ; #?????????? | | ???? ; ; ; #?????????? | | ???? ; ; ; #??????????? | | ??? ; ;;;;;;;; @ #??????????? | | ???? ; RH s k #??????????? | | ?????""" ; sss #??????????? | | ?????""" ";;;;;;;;%;;;;;;;;;;; #??????????? | | ?????""" " ; ! ; ?????????? | | ?????""" " ; ; #??????????? | | ?????""" " ; ! """"" ; ^ #??????????? | | ???? " ; ""Y"" ; #??????????? | | ??? " ; ; w ???????????? | | ????""""""" ; ; ???????????? | | # ##"""""""""";;;;;;;;;+;;;;;;; ????????????? | | # ; * ; ;#????????????? | | + ;;;;;??????????????? | | " " ????????????????? | | " "??????????????????? | | !=% " "??????????????????? | | *%% " #??????????????????? | | ! ! """###??????????????????? | | ! "???????????????????????? | | ! % #???????????????????????? | | ##/###########"""""# #???????????????????????? | | ?# ?????????????????# %%#???????????????????????? | | ??#??????????????????# %#???????????????????????? | | ????????????#######??# /???????????????????????? | | ????????????# = ??#" #???????????????????????? | +----------------------------------------------------+ Best States ------------- Heat Dissipation 97 Energy Generation 53 Energy Capacity 525 Matter Stores 300 Matter Capacity 300 Sight Range 22 Robot Scan Range 18 Terrain Scan Range 16 Terrain Scan Density 85 ECM Strength 1 Additional Mass Support 9 Base Temperature (-) 100 Corruption Containment 12 Corruption Block 18 Armor Coverage 225 Weapon Cycling 20 Phase Shifting 15 Evasion (%) 74 Melee Accuracy 12 Target Analysis 8 Core Analysis 6 Recoil Reduction 8 Kinecelleration 40 Offensive Hacking 20 Defensive Hacking 10 Item Schematics ----------------- Exp. Myomer Leg | -2/Quarantine | Archive Prc. Phase Gun | -2/Quarantine | Archive Cld. Proton Cannon | -2/Quarantine | Archive Com. Mass Driver | -2/Quarantine | Archive Exp. Shock Absorption System | -2/Quarantine | Archive Prc. Energy Filter | -2/Quarantine | Archive Exp. Flexi-carbon Leg | -2/Quarantine | Archive Cld. Phase Gun | -2/Quarantine | Archive Robot Schematics ------------------ X-82 Rainmaker | -2/Quarantine | Archive A-27 Freighter | -2/Quarantine | Archive T-07 Excavator | -2/Quarantine | Archive S-43 Plague | -2/Quarantine | Archive R-10 Processor | -2/Quarantine | Archive K-01 Serf | -2/Quarantine | Archive Fabricated ------------ Nothing Repaired ---------- Nothing Studied --------- Imp. Antigrav System | -2/Quarantine | Hacked Alien Tech Used ----------------- Matter Drive Core Reset Matrix Sigix Broadsword Core Stripper Subatomic Replicator Terrabomb Achievements -------------- None Challenges ------------ None Game ------ Seed SpreadLobotomyMiniperforator Manual? 0 Play Time 01:28:45 Cumulative 262.8 hours Start 2026.08.16 @ 11:28:26 End 2026.08.16 @ 13:01:04 Sessions 3 Manual Loads 0 Difficulty Rogue Special Mode None Game No. 341 Rogue 341 Adventurer 0 Explorer 0 Win Type - Total 6 Types 5/0/0/1/0/0/0/0/0/0 Lore% 79 Gallery% 66 Achievement% 54 Wizard Run 0 Options --------- Layout 2 ASCII 0 Keyboard 0 Movement Mouse Keybinds 0 Fullscreen 1 Font 24/Smallcaps Map View 50x44 Zoom Use 0% Tactical HUD 1 Map Filters NONE Filters NONE Steam 1 RUN: ff7855d0-f922-43e6-b5ee-bbee2977b651